bitfinex/quotes_ETHUSD_20240828
["timestamp","ask_amount","ask_price","bid_price","bid_amount"]
[1724864644966,4.7073264,2519.8,2519.2,3.96941]
[1724864645137,3.96873,2519.7,2519.0,3.96975]
[1724864645334,0.47073964,2519.6,2518.7,3.97026]
[1724864645665,3.96912,2519.5,2518.8,3.97005]
[1724864646117,7.93893,2519.3,2518.8,3.97005]
[1724864646320,3.96944,2519.3,2518.8,3.97005]
[1724864646518,3.96911,2519.5,2518.8,3.97005]
[1724864646760,8.31146664,2519.7,2519.0,3.96972]
[1724864646972,4.34260664,2519.7,2519.2,3.96951]
[1724864647131,3.96848,2519.9,2519.4,3.96919]
[1724864647472,0.41559975,2520.2,2519.8,3.96854]
[1724864648154,0.41559975,2520.2,2520.0,3.96816]
[1724864648355,0.41559975,2520.2,2519.9,0.07936057]
[1724864648952,0.41559975,2520.2,2519.2,2.2748]
[1724864649276,3.96881,2519.7,2519.2,6.24422]
[1724864649562,3.96865,2519.8,2519.3,3.96933]
[1724864650160,3.96912,2519.5,2518.9,2.3845]
[1724864650373,3.96912,2519.5,2518.8,3.97004]
[1724864650661,3.96912,2519.5,2519.0,3.96981]
[1724864650826,3.96912,2519.5,2518.8,7.94004]
[1724864651024,1.093794,2519.5,2518.9,3.96994]
[1724864651254,3.96927,2519.4,2518.8,7.94003]
[1724864651436,3.96951,2519.2,2518.6,3.97032]
[1724864651731,0.9032034,2519.4,2518.1,3.9712]
[1724864651732,3.96981,2519.1,2518.1,6.40296]
[1724864652059,3.97014,2518.8,2518.1,6.40296]
[1724864652217,0.397014,2518.8,2518.1,2.4318]
[1724864652424,3.97054,2518.6,2518.1,3.97115]
[1724864653267,3.96999,2518.9,2518.3,3.97092]
[1724864653420,3.96999,2518.9,2518.4,0.0794073]
[1724864653826,7.94011,2518.9,2518.4,0.0794073]
[1724864654131,3.96999,2518.9,2518.4,0.0794073]
[1724864654531,3.0,2519.2,2518.6,3.97041]
[1724864654731,3.0,2519.2,2518.5,3.97052]
[1724864654732,3.96971,2519.1,2518.5,3.97052]
[1724864655056,3.97039,2518.7,2517.9,3.97147]
[1724864655223,7.94079,2518.7,2518.1,3.97114]
[1724864655560,7.94078,2518.7,2518.1,3.97114]
[1724864655745,3.97046,2518.6,2517.9,3.97142]
[1724864655951,3.97039,2518.7,2518.1,3.97122]
[1724864655952,7.94081,2518.7,2518.1,3.97122]
[1724864656161,0.41573296,2518.8,2517.9,3.97141]
[1724864656326,0.41573296,2518.8,2517.8,6.32353]
[1724864656327,3.97087,2518.4,2517.8,6.32353]
[1724864656650,4.38589296,2518.8,2517.9,4.05090215]
[1724864656850,7.9411,2518.6,2518.1,3.97116]
[1724864657047,7.9411,2518.6,2517.9,4.61176022]
[1724864657048,3.97055,2518.6,2517.9,3.97148]
[1724864657256,2.3303,2518.7,2517.8,2.3519]
[1724864657424,3.97092,2518.4,2517.8,2.3519]
[1724864657626,3.97092,2518.4,2517.9,3.97156]
[1724864657826,7.94179,2518.4,2517.9,3.97156]
[1724864658049,3.97087,2518.4,2517.9,3.97156]
[1724864658258,3.9707,2518.5,2517.9,3.97156]
[1724864658438,3.97085,2518.4,2517.9,3.97156]
[1724864658970,3.97085,2518.4,2517.8,2.3519]
[1724864659152,3.97055,2518.6,2517.9,0.07942196]
[1724864659490,3.97055,2518.6,2518.1,3.97115]
[1724864659653,4.38596296,2518.8,2518.1,3.97115]
[1724864659852,4.38596296,2518.8,2518.3,3.97079]
[1724864660063,3.97046,2518.6,2518.1,7.9423]
[1724864660259,3.97046,2518.6,2518.2,3.97107]
[1724864660430,3.97078,2518.4,2517.8,6.32346]
[1724864660637,3.97078,2518.4,2517.9,3.97142]
[1724864661078,2.2873,2518.7,2517.8,2.3519]
[1724864661366,4.38599296,2518.8,2518.2,7.94198]
[1724864661577,0.41573296,2518.8,2518.4,2.4825]
[1724864661741,0.41573296,2518.8,2518.7,3.9703]
[1724864662435,2.3199,2519.9,2518.9,3.96998]
[1724864662629,3.9691,2519.5,2519.0,0.396998]
[1724864662870,3.9691,2519.5,2518.9,3.96998]
[1724864662871,0.41572456,2519.4,2518.5,8.18929]
[1724864663074,7.93895,2519.3,2518.6,1.067179]
[1724864663282,7.93895,2519.3,2518.7,3.9703]
[1724864663283,3.96953,2519.2,2518.7,3.9703]
[1724864663435,3.96953,2519.2,2518.6,3.97044]
[1724864663635,7.93914,2519.2,2518.6,3.97044]
[1724864663936,3.96985,2519.0,2518.4,2.4825]
[1724864664134,4.8050871,2519.2,2518.6,3.97045]
[1724864664135,8.7747271,2519.2,2518.6,3.97045]
[1724864664361,3.9696,2519.2,2518.5,3.97052]
[1724864664671,3.96957,2519.2,2518.1,3.97109]
[1724864664876,3.97022,2518.8,2518.2,3.97099]
[1724864665241,7.94008,2518.9,2518.3,3.9709]
[1724864665455,3.97027,2518.8,2518.3,3.9709]
[1724864665818,3.97,2518.9,2518.3,4.05030857]
[1724864665956,0.41573098,2519.3,2518.1,3.97113]
[1724864666161,3.97045,2518.7,2518.1,3.97113]
[1724864666368,7.94085,2518.7,2518.1,3.97113]
[1724864666589,3.9704,2518.7,2518.1,4.903603]
[1724864666904,3.97009,2518.9,2518.3,3.9709]
[1724864667072,3.97028,2518.8,2518.3,3.9709]
[1724864667404,7.38511098,2519.3,2518.5,3.97059]
[1724864667405,3.96986,2519.0,2518.5,3.97059]
[1724864667571,3.41573098,2519.3,2518.7,3.97021]
[1724864667572,7.38518098,2519.3,2518.7,3.97021]
[1724864667900,0.41573098,2519.3,2518.8,0.07939657]
[1724864668062,0.41573098,2519.3,2518.7,3.97029]
[1724864668267,0.41573098,2519.3,2518.7,4.367229]
[1724864668268,4.38518098,2519.3,2518.7,4.367229]
[1724864668463,4.38518098,2519.3,2518.7,7.94042]
[1724864668690,8.35465098,2519.3,2518.7,3.97021]
[1724864669003,8.35465098,2519.3,2518.8,3.97013]
[1724864669004,4.38518098,2519.3,2518.8,3.97013]
[1724864669360,8.35462098,2519.3,2518.7,7.94041]
[1724864669566,4.38517098,2519.3,2518.7,4.764241]
[1724864669760,4.38517098,2519.3,2518.7,3.9702]
[1724864669998,3.96969,2519.1,2518.5,3.97046]
[1724864670292,3.96969,2519.1,2518.5,4.66213289]
[1724864670493,4.38517098,2519.3,2518.5,4.66213289]
[1724864670494,4.38517098,2519.3,2518.7,7.94052]
[1724864670712,4.38517098,2519.3,2518.8,3.97012]
[1724864670866,4.38517098,2519.3,2518.7,3.97022]
[1724864671064,3.96951,2519.2,2518.7,3.97022]
[1724864671260,4.38517098,2519.3,2518.7,3.97016]
[1724864671466,8.35465098,2519.3,2518.7,4.43634329]
[1724864671798,3.96961,2519.2,2518.7,4.43634329]
[1724864672026,4.38516098,2519.3,2518.4,6.42326]
[1724864672168,0.41573098,2519.3,2518.6,3.97045]
[1724864672364,4.38520098,2519.3,2518.7,3.97029]
[1724864672667,4.38520098,2519.3,2518.5,4.21571]
[1724864672668,3.96969,2519.1,2518.5,4.21571]
[1724864673003,3.97041,2518.7,2517.8,2.4698]
[1724864673208,3.97049,2518.6,2518.2,3.97106]
[1724864673380,3.9705,2518.6,2518.0,3.9713]
[1724864673582,3.97014,2518.8,2518.4,3.97077]
[1724864673781,3.97014,2518.8,2518.1,7.94234]
[1724864673782,3.97042,2518.7,2518.1,7.94234]
[1724864674114,3.97045,2518.6,2517.9,3.97146]
[1724864674279,3.97077,2518.5,2517.9,3.97146]
[1724864674483,7.94209,2518.3,2517.8,2.4698]
[1724864674702,3.97111,2518.2,2517.8,2.4698]
[1724864675000,3.97104,2518.3,2517.7,3.97179]
[1724864675298,3.97104,2518.3,2517.8,3.97168]
[1724864675506,3.9703,2518.7,2518.0,3.97129]
[1724864675672,7.94071,2518.7,2518.2,3.97105]
[1724864675875,3.97046,2518.6,2518.2,3.97105]
[1724864676178,3.97064,2518.5,2518.1,2.4698]
[1724864676781,3.97045,2518.6,2518.2,3.97108]
[1724864676991,3.97045,2518.6,2518.1,2.4698]
[1724864677699,3.97045,2518.6,2518.1,6.44103]
[1724864677997,3.97042,2518.7,2518.1,6.44103]
[1724864678330,3.9705,2518.6,2518.1,6.44095]
[1724864678535,3.97077,2518.4,2517.9,3.97144]
[1724864679227,7.94162,2518.4,2517.9,3.97144]
[1724864679384,3.97064,2518.5,2518.0,3.9714]
[1724864679591,0.41580517,2518.6,2518.1,3.97116]
[1724864679798,4.38631517,2518.6,2518.1,3.97116]
[1724864679996,4.38631517,2518.6,2518.0,3.97132]
[1724864679997,4.38633517,2518.6,2518.0,3.97132]
[1724864680223,4.38633517,2518.6,2517.7,2.4698]
[1724864680224,3.97091,2518.4,2517.9,3.97153]
[1724864680393,3.97101,2518.3,2517.8,3.97164]
[1724864680595,3.97072,2518.5,2518.0,3.9714]
[1724864681016,3.97072,2518.5,2518.0,7.94268]
[1724864681220,3.97082,2518.4,2517.8,3.9716]
[1724864681412,3.97075,2518.5,2518.0,3.97132]
[1724864681616,3.97075,2518.5,2518.0,7.94261]
[1724864681846,3.97075,2518.5,2517.7,2.71678]
[1724864681847,3.971,2518.3,2517.8,3.97159]
[1724864682048,7.94144,2518.5,2518.0,3.9714]
[1724864682227,3.97071,2518.5,2518.0,3.9714]
[1724864682427,3.9709,2518.4,2517.8,7.94321]
[1724864682748,3.97094,2518.3,2517.8,3.97159]
[1724864682951,3.97094,2518.3,2517.9,3.97155]
[1724864683257,3.97094,2518.3,2517.7,6.44152]
[1724864683406,3.97094,2518.3,2517.8,7.94326]
[1724864683608,7.94201,2518.3,2517.8,3.97157]
[1724864683944,3.97094,2518.3,2517.8,7.94317]
[1724864684114,7.94146,2518.5,2517.9,3.97156]
[1724864684320,3.97071,2518.5,2517.9,3.97156]
[1724864685063,3.97085,2518.4,2517.8,5.012867]
[1724864685217,3.97095,2518.3,2517.8,5.012867]
[1724864685556,3.97119,2518.2,2517.6,3.97196]
[1724864685718,7.94243,2518.2,2517.6,3.97196]
[1724864685917,3.97129,2518.1,2517.5,7.94417]
[1724864686120,3.97143,2518.0,2517.5,3.97206]
[1724864686662,7.94294,2518.0,2517.5,3.97206]
[1724864686822,3.97143,2518.0,2517.5,3.97206]
[1724864687027,7.94294,2518.0,2517.5,3.97206]
[1724864687364,3.97196,2517.7,2517.1,6.39812]
[1724864687662,3.97221,2517.5,2517.1,2.4254]
[1724864687867,3.97253,2517.3,2516.8,6.42781]
[1724864688171,0.794474,2517.3,2516.5,6.42827]
[1724864688379,3.97308,2517.0,2516.5,2.4546]
[1724864688767,4.767685,2517.0,2516.5,2.4546]
[1724864688937,7.94618,2517.0,2516.5,2.4546]
[1724864689136,3.97308,2517.0,2516.5,2.4546]
[1724864689335,3.97308,2517.0,2516.5,6.42835]
[1724864689537,3.97278,2517.2,2516.6,0.07946169]
[1724864689875,3.97278,2517.2,2516.6,0.72229669]
[1724864690035,3.97244,2517.4,2516.6,0.72229669]
[1724864690236,3.97252,2517.3,2516.5,6.42827]
[1724864690440,3.97252,2517.3,2516.7,3.97335]
[1724864690669,3.97244,2517.4,2516.5,6.42823]
[1724864690670,3.97268,2517.2,2516.5,6.42823]
[1724864691161,3.97268,2517.2,2516.6,3.97347]
[1724864691765,3.97268,2517.2,2516.7,3.97343]
[1724864692778,3.97244,2517.4,2516.8,4.05267949]
[1724864692962,3.97244,2517.4,2516.9,3.97312]
[1724864693164,11.341486,2517.6,2516.9,3.97305]
[1724864693485,3.97236,2517.4,2516.9,3.97305]
[1724864693686,3.97236,2517.4,2515.7,9.65850952]
[1724864693687,3.97135,2518.1,2517.4,3.97228]
[1724864693987,0.57483576,2518.3,2517.7,3.97187]
[1724864693988,0.41590636,2517.8,2517.7,3.97187]
[1724864694334,0.41590636,2517.8,2517.1,2.4045]
[1724864694335,3.97134,2518.1,2517.5,3.97216]
[1724864694566,2.3464,2518.5,2517.2,0.24045]
[1724864694567,3.97164,2517.9,2517.2,0.24045]
[1724864694765,3.97197,2517.7,2517.1,10.35004]
[1724864695041,3.97197,2517.7,2517.1,10.34998]
[1724864695362,0.57483576,2518.1,2517.1,10.34998]
[1724864695363,3.97148,2518.0,2517.4,3.9723]
[1724864695537,0.41588904,2518.2,2517.7,3.97179]
[1724864695744,0.41588904,2518.2,2517.7,3.97183]
[1724864695978,0.41588904,2518.2,2517.6,3.97199]
[1724864695979,4.38706904,2518.2,2517.6,7.94391]
[1724864696396,4.38706904,2518.2,2517.7,3.97187]
[1724864696567,0.41588904,2518.2,2517.8,3.97169]
[1724864697682,4.38704904,2518.2,2517.6,4.369102]
[1724864697848,4.38704904,2518.2,2517.4,3.97222]
[1724864697849,4.8070769,2518.1,2517.4,3.97222]
[1724864698054,0.8358069,2518.1,2517.5,3.97204]
[1724864698283,4.38698904,2518.2,2517.5,3.97204]
[1724864698468,0.41588904,2518.2,2517.8,3.97161]
[1724864698664,0.41588904,2518.2,2517.7,3.97184]
[1724864698665,0.41588904,2518.2,2517.9,3.97155]
[1724864699492,0.41588904,2518.2,2517.7,3.97174]
[1724864699647,0.41588904,2518.2,2517.8,3.97163]
[1724864699846,0.41588904,2518.2,2517.9,3.97152]
[1724864700055,3.97133,2518.1,2517.5,3.97209]
[1724864700298,3.97133,2518.1,2517.6,3.97202]
[1724864700459,4.48391929,2518.1,2517.6,3.97202]
[1724864701000,4.48391929,2518.1,2517.5,3.97209]
[1724864701156,4.48391929,2518.1,2517.1,5.4045]
[1724864701157,2.2518,2517.8,2517.1,3.97272]
[1724864701353,4.594239,2517.7,2517.1,3.97272]
[1724864701716,3.9719,2517.7,2517.1,3.97272]
[1724864701873,7.94391,2517.7,2517.1,3.97272]
[1724864702059,3.97258,2517.3,2516.7,3.97341]
[1724864702259,3.97284,2517.1,2516.5,3.97367]
[1724864702559,3.97284,2517.1,2516.3,6.30768]
[1724864702560,3.97314,2516.9,2516.3,6.30768]
[1724864702764,0.397284,2517.0,2516.3,3.97398]
[1724864703072,3.97289,2517.1,2516.5,3.97368]
[1724864703257,3.97289,2517.1,2516.3,7.94795]
[1724864703471,3.97316,2516.9,2516.3,3.97396]
[1724864703766,3.97316,2516.9,2516.1,6.30802]
[1724864703767,3.97356,2516.7,2516.1,3.97432]
[1724864703972,3.97365,2516.6,2516.1,3.97432]
[1724864704277,4.370916,2516.7,2516.0,3.97452]
[1724864704606,4.370916,2516.7,2516.1,3.97437]
[1724864704770,4.370916,2516.7,2516.1,7.94861]
[1724864704969,4.370906,2516.7,2516.1,3.9743]
[1724864705168,3.97289,2517.1,2516.3,3.97408]
[1724864705399,3.97318,2516.9,2516.3,3.97396]
[1724864705713,1.094608,2516.9,2516.4,3.9738]
[1724864706271,3.0,2517.0,2516.3,3.97402]
[1724864706475,3.97268,2517.2,2516.7,3.97337]
[1724864706706,6.2244,2517.3,2516.7,3.97336]
[1724864706874,6.2244,2517.3,2516.8,3.97327]
[1724864707077,3.97226,2517.5,2516.9,3.97308]
[1724864707315,3.97226,2517.5,2516.3,3.97405]
[1724864707316,4.1971,2517.7,2516.8,0.07946203]
[1724864707603,6.35072,2517.9,2517.1,3.97268]
[1724864707786,3.972,2517.7,2517.1,3.97268]
[1724864707969,6.92558576,2517.9,2517.0,0.07944757]
[1724864708167,3.9713,2518.1,2517.3,3.97237]
[1724864708374,3.9713,2518.1,2517.0,0.07944757]
[1724864708375,3.9713,2518.1,2517.5,3.97204]
[1724864708814,4.54625576,2518.0,2517.3,3.97242]
[1724864709116,3.97174,2517.8,2517.3,3.97241]
[1724864709415,4.54625576,2518.0,2517.4,3.97232]
[1724864709573,6.35028,2518.2,2517.4,0.794473]
[1724864709780,0.41588006,2517.9,2517.6,3.97192]
[1724864709986,0.85459207,2517.9,2517.2,3.97256]
[1724864710215,0.85459207,2517.9,2517.0,3.97287]
[1724864710216,0.99071582,2517.9,2517.0,3.97287]
[1724864710511,3.97192,2517.7,2517.2,3.97253]
[1724864710718,0.41588006,2517.9,2517.1,0.07944884]
[1724864710919,0.41588006,2517.9,2517.4,2.4244]
[1724864711075,0.41588006,2517.9,2517.8,3.97172]
[1724864711281,0.41588006,2517.9,2517.8,7.94344]
[1724864711625,0.41588006,2517.9,2517.6,3.97191]
[1724864711910,0.41588006,2517.9,2517.8,7.94344]
[1724864712108,6.35829,2518.8,2518.1,3.97117]
[1724864712296,0.4158285,2518.3,2518.1,3.97117]
[1724864712499,0.4158285,2518.3,2518.1,3.97116]
[1724864712716,3.97038,2518.7,2518.1,3.97116]
[1724864712883,0.41580932,2518.3,2518.1,3.97116]
[1724864713212,4.66369258,2518.7,2518.1,3.97116]
[1724864713408,0.41579903,2518.3,2518.1,3.97116]
[1724864713714,4.66369258,2518.7,2518.1,3.97116]
[1724864713872,0.41579816,2518.3,2518.2,8.02160214]
[1724864714070,2.388,2519.5,2518.2,10.37210214]
[1724864714304,2.388,2519.9,2518.3,3.80216021]
[1724864714505,0.41579288,2519.3,2518.7,3.97017]
[1724864714691,3.96868,2519.8,2519.1,7.93912]
[1724864715029,4.38532146,2519.2,2518.5,3.97057]
[1724864715322,6.3576,2519.2,2518.5,3.97051]
[1724864715475,0.41580004,2519.1,2518.5,3.97051]
[1724864715804,0.41580004,2519.1,2518.5,3.97053]
[1724864716011,0.41580004,2519.1,2518.5,3.97051]
[1724864716192,3.96997,2519.0,2518.3,3.9709]
[1724864716394,3.97006,2518.9,2518.3,3.9709]
[1724864716600,3.97006,2518.9,2518.1,3.97118]
[1724864716601,3.97042,2518.7,2518.1,3.97118]
[1724864716935,3.97071,2518.5,2517.9,3.97143]
[1724864717077,3.97047,2518.6,2517.5,6.23547]
[1724864717078,3.97118,2518.2,2517.5,6.23547]
[1724864717279,3.9713,2518.1,2517.5,3.97207]
[1724864717825,3.0,2518.5,2517.7,3.97178]
[1724864718031,3.97097,2518.3,2517.7,3.97177]
[1724864718184,4.368067,2518.3,2517.7,7.94355]
[1724864718385,6.40436,2518.7,2517.8,0.07943004]
[1724864718588,3.0,2518.8,2517.8,2.4869]
[1724864718790,3.97006,2518.9,2518.2,3.97096]
[1724864719622,3.97006,2518.9,2518.3,3.97088]
[1724864719813,3.97006,2518.9,2518.2,3.97096]
[1724864719814,3.97025,2518.8,2518.2,3.97096]
[1724864720093,0.794031,2518.8,2518.3,3.9709]
[1724864720291,3.97055,2518.6,2517.9,3.97154]
[1724864720610,3.97004,2518.9,2518.2,3.97095]
[1724864720818,3.0,2518.8,2518.4,3.97071]
[1724864721125,7.6382362,2519.0,2518.4,3.97071]
[1724864721286,3.0,2519.0,2518.5,3.97061]
[1724864721487,6.81955004,2519.1,2518.4,3.97071]
[1724864721488,6.81955004,2519.1,2518.4,3.97068]
[1724864721696,3.92869704,2519.1,2518.4,3.97071]
[1724864721903,2.84980004,2519.1,2518.6,3.97033]
[1724864722102,3.97014,2518.8,2518.2,3.97101]
[1724864722327,3.97014,2518.8,2518.2,3.97096]
[1724864723026,0.681934,2519.0,2517.8,0.645885]
[1724864723027,3.97056,2518.6,2517.8,0.645885]
[1724864723187,3.97105,2518.3,2517.7,3.97174]
[1724864723389,3.97069,2518.5,2517.6,3.97194]
[1724864723390,3.97078,2518.4,2517.6,3.97194]
[1724864723614,3.97094,2518.3,2517.8,3.97161]
[1724864724128,3.97142,2518.0,2517.2,3.97257]
[1724864724335,0.397142,2517.9,2517.2,3.9726]
[1724864724490,3.97129,2518.1,2517.4,3.97225]
[1724864724989,6.97101,2518.3,2517.6,3.97202]
[1724864725195,6.97105,2518.3,2517.7,3.97185]
[1724864725392,6.97105,2518.3,2517.8,3.97171]
[1724864725627,6.97105,2518.3,2517.8,7.94342]
[1724864725807,3.0,2518.3,2517.8,3.97171]
[1724864726017,3.0,2518.4,2517.8,3.97161]
[1724864726346,6.97039,2518.7,2518.0,3.9713]
[1724864726512,4.367599,2518.6,2518.0,3.9713]
[1724864726713,0.397039,2518.6,2518.2,3.97106]
[1724864726929,7.9407,2518.7,2518.2,3.97106]
[1724864727104,3.97032,2518.7,2518.2,3.97106]
[1724864727304,5.012839,2518.7,2518.2,3.97106]
[1724864727506,4.38555004,2519.1,2518.4,3.97068]
[1724864727714,3.96992,2519.0,2518.4,3.97068]
[1724864728004,0.835547,2518.9,2518.4,3.97068]
[1724864728340,0.835547,2518.9,2517.6,2.2937]
[1724864728341,3.96987,2519.0,2518.2,7.94201]
[1724864728545,3.97016,2518.8,2518.2,7.94194]
[1724864728838,3.97016,2518.8,2518.2,7.94193]
[1724864729038,3.97077,2518.4,2517.8,3.97156]
[1724864729245,0.9021541,2518.8,2518.0,3.9714]
[1724864729246,3.97054,2518.6,2518.0,3.9714]
[1724864729427,3.97054,2518.6,2518.0,7.94271]
[1724864729741,3.97054,2518.6,2518.1,3.97122]
[1724864729948,3.97054,2518.6,2517.8,7.94321]
[1724864730120,0.397054,2518.5,2518.0,3.97137]
[1724864730445,3.97078,2518.4,2517.9,3.9715]
[1724864730602,0.397054,2518.5,2518.0,3.9713]
[1724864730808,0.41587057,2518.4,2518.1,3.97119]
[1724864731451,0.41587057,2518.4,2518.2,3.97106]
[1724864731752,0.41587057,2518.4,2518.2,4.368166]
[1724864731915,0.41587057,2518.4,2518.3,8.02127309]
[1724864732120,0.41587057,2518.4,2518.3,8.10423586]
[1724864732320,0.41587057,2518.4,2518.3,8.02482277]
[1724864732513,0.41587057,2518.4,2518.3,4.05389277]
[1724864732715,4.38664057,2518.4,2518.3,0.08296277]
[1724864733012,1.25159163,2518.4,2518.3,0.08296277]
[1724864733329,1.25159163,2518.4,2517.9,7.94304]
[1724864733644,0.41587057,2518.4,2518.3,0.08469836]
[1724864733857,0.41587057,2518.4,2517.8,3.97163]
[1724864734017,0.41587057,2518.4,2518.3,0.08469836]
[1724864734215,0.41587057,2518.4,2518.0,3.9713]
[1724864734416,0.41587057,2518.4,2518.3,0.08468242]
[1724864734678,0.41587057,2518.4,2518.1,3.97124]
[1724864734860,0.41587057,2518.4,2518.3,0.08468242]
[1724864735006,4.38664057,2518.4,2518.2,0.08482442]
[1724864735330,3.97093,2518.3,2517.7,7.94351]
[1724864735539,3.97093,2518.3,2517.8,3.9717]
[1724864735735,0.41587057,2518.4,2517.9,3.97156]
[1724864735940,0.41587057,2518.4,2518.0,3.97132]
[1724864736109,0.41587057,2518.4,2517.8,7.94317]
[1724864736636,0.41587057,2518.4,2518.0,3.9713]
[1724864736814,0.41587057,2518.4,2518.0,4.36843]
[1724864737010,0.41587057,2518.4,2518.0,3.9713]
[1724864737213,0.41587057,2518.4,2517.7,3.97177]
[1724864737511,7.94208,2518.3,2517.8,3.9717]
[1724864737835,3.97101,2518.3,2517.8,3.9717]
[1724864738156,3.97101,2518.3,2517.5,3.0644682]
[1724864738157,3.9711,2518.2,2517.7,3.97184]
[1724864738317,3.97101,2518.3,2517.7,3.97184]
[1724864738521,0.41587057,2518.4,2517.8,0.87380416]
[1724864738736,0.41587057,2518.4,2518.2,3.97097]
[1724864738907,0.41587057,2518.4,2518.3,4.368027]
[1724864739307,0.41587057,2518.4,2517.5,3.0644682]
[1724864739308,0.41587057,2518.4,2518.0,3.97128]
[1724864739611,0.41587057,2518.4,2518.1,3.97124]
[1724864739810,0.41587057,2518.4,2518.3,3.97093]
[1724864741051,0.41587057,2518.4,2518.3,7.94186]
[1724864741379,3.96963,2519.2,2518.3,3.97093]
[1724864741380,3.9697,2519.1,2518.3,3.97093]
[1724864741541,3.97006,2518.9,2518.3,3.97082]
[1724864741849,3.97052,2518.6,2518.1,3.97115]
[1724864742050,3.97052,2518.6,2517.9,3.97147]
[1724864742051,3.9707,2518.5,2517.9,3.97147]
[1724864742296,3.97072,2518.5,2517.9,3.97143]
[1724864742458,3.97048,2518.6,2517.9,3.97143]
[1724864742664,0.397048,2518.5,2517.9,3.97143]
[1724864742854,4.367738,2518.5,2518.0,4.05640341]
[1724864743037,3.97069,2518.5,2518.0,4.05640341]
[1724864743277,3.97074,2518.5,2518.0,4.05640341]
[1724864743583,3.97048,2518.6,2518.1,3.97124]
[1724864743937,4.38568061,2519.0,2518.5,3.97053]
[1724864744141,3.97006,2518.9,2518.3,7.94167]
[1724864744341,4.82436867,2519.0,2518.6,0.08436807]
[1724864744536,3.97006,2518.9,2518.3,3.97083]
[1724864744766,3.97006,2518.9,2518.7,0.08426861]
[1724864744966,4.38580061,2519.0,2518.3,3.97083]
[1724864745288,0.41583061,2519.0,2518.8,0.08416917]
[1724864745454,4.38566061,2519.0,2518.5,7.94104]
[1724864745789,4.38566061,2519.0,2518.6,3.97044]
[1724864745790,0.41583061,2519.0,2518.6,3.97044]
[1724864745969,0.41583061,2519.0,2518.6,4.05480807]
[1724864746945,5.22119267,2519.0,2518.6,0.08436807]
[1724864747148,3.97001,2518.9,2518.2,6.25279]
[1724864747370,3.97001,2518.9,2518.7,0.08426861]
[1724864747679,4.40859406,2518.9,2518.7,0.08426861]
[1724864747880,4.40859406,2518.9,2518.4,3.97077]
[1724864748040,4.40859406,2518.9,2518.8,0.08416917]
[1724864748246,3.9703,2518.7,2518.0,7.94258]
[1724864748446,3.97056,2518.6,2518.0,7.94261]
[1724864748638,3.97056,2518.6,2518.1,3.97122]
[1724864749100,7.94136,2518.5,2517.9,3.97141]
[1724864749271,3.97062,2518.5,2518.0,3.97139]
[1724864749486,3.97062,2518.5,2517.8,3.97156]
[1724864749787,3.97078,2518.4,2517.8,3.97156]
[1724864749988,3.97078,2518.4,2517.9,3.97155]
[1724864750194,3.97103,2518.3,2517.8,3.97168]
[1724864750686,4.87236954,2518.4,2517.9,3.97154]
[1724864750890,2.3597,2518.7,2518.1,3.97115]
[1724864751339,2.3597,2518.7,2517.8,0.65886068]
[1724864751340,4.38577061,2519.0,2517.8,0.65886068]
[1724864751543,3.96999,2518.9,2518.4,3.97076]
[1724864751989,3.96999,2518.9,2518.4,7.94137]
[1724864752195,0.41583061,2519.0,2518.5,3.97058]
[1724864752571,0.41583061,2519.0,2518.7,3.97022]
[1724864753046,4.38566061,2519.0,2518.5,3.97052]
[1724864753246,3.96999,2518.9,2518.5,3.97061]
[1724864754375,0.41583061,2519.0,2518.6,2.3619]
[1724864754697,4.38568061,2519.0,2518.5,3.97051]
[1724864755191,0.41583061,2519.0,2518.5,3.9705]
[1724864755397,0.41583061,2519.0,2518.6,3.97045]
[1724864755692,0.41583061,2519.0,2518.5,3.9705]
[1724864756603,4.82433567,2519.0,2518.5,3.9705]
[1724864757064,3.96999,2518.9,2518.5,3.9705]
[1724864757904,0.41583061,2519.0,2518.7,3.97025]
[1724864758205,0.41583061,2519.0,2518.6,0.08430429]
[1724864758206,0.41583061,2519.0,2518.8,0.08410539]
[1724864758365,7.93996,2518.9,2518.8,0.08410539]
[1724864758559,3.97068,2518.5,2518.0,3.97138]
[1724864759007,3.9704,2518.7,2518.1,0.08480167]
[1724864759305,0.41582765,2518.4,2518.3,3.97093]
[1724864759489,3.96975,2519.1,2518.3,7.94186]
[1724864759658,3.96975,2519.1,2518.4,3.97072]
[1724864759659,0.41581113,2518.8,2518.4,3.97072]
[1724864759873,0.41581113,2518.8,2518.5,4.05480151]
[1724864760073,0.41581113,2518.8,2518.6,3.97037]
[1724864760310,0.41581113,2518.8,2518.5,2.40348151]
[1724864760513,3.97036,2518.7,2518.1,6.2903]
[1724864760680,8.35627113,2518.8,2518.2,3.971]
[1724864761183,3.97031,2518.7,2518.2,3.971]
[1724864761383,3.97046,2518.6,2518.1,6.2903]
[1724864761789,7.94101,2518.6,2518.1,6.2903]
[1724864762001,3.97103,2518.3,2517.8,2.2553]
[1724864762203,3.97079,2518.4,2517.5,3.97208]
[1724864762204,2.4062,2518.4,2517.5,3.97208]
[1724864762407,0.397079,2518.3,2517.4,6.22764]
[1724864762580,4.368119,2518.3,2517.5,3.97216]
[1724864762775,3.97125,2518.1,2517.5,4.99214]
[1724864762974,3.97145,2518.0,2517.4,2.2553]
[1724864763204,3.97168,2517.9,2517.4,2.2553]
[1724864763413,3.97214,2517.6,2517.1,2.3583]
[1724864763626,3.97149,2518.0,2517.2,0.07944216]
[1724864763828,3.97149,2518.0,2517.3,3.97239]
[1724864764183,3.97168,2517.9,2517.3,3.97239]
[1724864764386,3.97149,2518.0,2517.3,3.97239]
[1724864764387,3.9718,2517.8,2517.3,3.97239]
[1724864765010,3.9714,2518.0,2517.4,0.07943713]
[1724864765339,3.97135,2518.1,2517.5,7.94427]